Cogmind - Beta 17 @@@ ROGUE MODE // 2026.07.19 @ 09:23:42 Player: winnking222 Result: Destroyed by P-60 Hacker with Shock Rifle Performance ------------- Evolutions (4) 2000 Regions Visited (6) 1200 Robots Destroyed (57) 285 Value Destroyed (1573) 1573 Prototype IDs (26) 520 Alien Tech Used (0) 0 Bonus (9520) 9520 TOTAL SCORE: 15098 Bonus ------- Follower Combat Kills 370 Prayed to X0-1V1 5000 Major X0-1V1 Interference 3350 Registered with UFD 300 Met Optimus in HQ 500 Cogmind --------- Core Integrity 0/1090 Matter 168/300 Energy 99/100 System Corruption 0% Temperature Cool (0) Movement Core (100) Ox1 Location -6/Factory Parts ------- > --- POWER (2) -------- (None) > --- PROPULSION (6) --- (None) > --- UTILITY (5) ------ (None) > --- WEAPON (2) ------- Companion Sword > --- INVENTORY (5) ---- Protomatter-48 Wheel Scrapoid Pod Plasma Cutter Peak State ------------ > --- POWER ------------ Cooled Ion Engine > --- PROPULSION ------- Light Treads Light Treads Light Treads Light Treads Armored Wheel > --- UTILITY ---------- High-capacity Storage Unit Improved Sensor Array Microactuators Medium Armor Plating Improved Hacking Suite X0-1V1's Piety Tracker > --- WEAPON ----------- Mini Assault Cannon Companion Sword > --- INVENTORY -------- Protomatter Aluminum Leg Makeshift Leg Wheel Advanced Heat Sink High-capacity Matter Pod Advanced Targeting Computer Scrapoid Pod Plasma Cannon Plasma Cannon Heavy Assault Rifle Autogun Precision Rocket Launcher Plasma Cutter Vortex Trap DRS Beacon [Rating: 53] Favorites ----------- Power Ion Engine Engine Ion Engine Propulsion Light Treads Treads Light Treads Leg Aluminum Leg Wheel Compact Wheel Utility X0-1V1's Piety Tracker Device X0-1V1's Piety Tracker Storage High-capacity Storage Unit Processor Advanced Targeting Computer Hackware Improved Hacking Suite Protection Medium Armor Plating Weapon Subdweller Laser Energy Gun Subdweller Laser Energy Cannon Subdweller Beam Cannon Ballistic Gun High-powered Shotgun Ballistic Cannon Slug Cannon Launcher Grenade Launcher Special Weapon Plasma Cutter Slashing Weapon Companion Sword Build | -11 -10 -10 -10 -9 -9 -6 ------- Run | Yrd Mat Min Sub Rec Scr Fac Slots Evolved 8 | . . . . . . 8 Power . | . . . . . . . Propulsion 4 | . . . . . . 4 Utility 4 | . . . . . . 4 Weapon . | . . . . . . . Parts Attached 53 | 7 8 1 9 5 4 19 Power 5 | 1 1 . 1 1 1 . Engine 5 | 1 1 . 1 1 1 . Core . | . . . . . . . Reactor . | . . . . . . . Propulsion 15 | 2 2 . 1 1 1 8 Treads 9 | 2 2 . 1 . . 4 Leg 4 | . . . . . . 4 Wheel 2 | . . . . 1 1 . Hover . | . . . . . . . Flight . | . . . . . . . Utility 13 | 2 3 . 1 . . 7 Device 7 | 1 2 . . . . 4 Storage 3 | 1 1 . 1 . . . Processor 1 | . . . . . . 1 Hackware 1 | . . . . . . 1 Protection 1 | . . . . . . 1 Artifact . | . . . . . . . Weapon 20 | 2 2 1 6 3 2 4 Energy Gun 4 | . 1 . 3 . . . Energy Cannon 2 | . . . 1 . . 1 Ballistic Gun 7 | 2 . 1 . 2 1 1 Ballistic Cannon 2 | . . . 1 . . 1 Launcher 3 | . 1 . 1 . . 1 Special Weapon 1 | . . . . 1 . . Impact Weapon . | . . . . . . . Slashing Weapon 1 | . . . . . 1 . Piercing Weapon . | . . . . . . . Special Melee Weapon . | . . . . . . . Unidentified Prototypes 5 | . 1 . . . 1 3 Parts Lost 28 | . 3 . 3 2 . 20 Power 4 | . 1 . 1 1 . 1 Propulsion 9 | . . . . . . 9 Utility 8 | . 1 . . . . 7 Weapon 7 | . 1 . 2 1 . 3 Highest Loss Streak 10 | . 2 . 1 1 . 10 To Critical Strikes . | . . . . . . . Average Backups 13 | 5 7 10 15 16 15 12 Power . | 1 . . . . . . Propulsion 5 | 3 4 5 5 5 5 2 Utility 3 | . 1 3 3 4 4 2 Weapon 4 | . 1 2 6 6 5 4 Tool/Special . | . . . . . . . Unused Backups 17 | . . . 5 . 4 8 Power . | . . . . . . . Propulsion 2 | . . . 1 . . 1 Utility 3 | . . . . . 1 2 Weapon 11 | . . . 4 . 3 4 Tool/Special 1 | . . . . . . 1 Average Slot Usage (%) 90 | . 98 100 94 92 85 65 Engine 14 | . 12 14 11 13 25 3 Treads 16 | . 28 28 25 4 . 16 Wheel 4 | . . . . 10 14 2 Device 13 | . 13 14 12 14 14 11 Storage 12 | . 14 14 12 14 14 5 Energy Gun 9 | . 12 14 14 13 . . Energy Cannon 1 | . . . 4 . . . Ballistic Gun 8 | . 12 14 7 19 . . Ballistic Cannon 1 | . . . 3 . . 5 Special Weapon 2 | . . . . . 13 . Slashing Weapon 1 | . . . . . 3 6 Peak Build Rating 53 | 7 20 23 35 30 32 53 Average Rating 24 | 5 7 22 26 27 25 41 On Entrance 18 | . 7 20 23 27 23 32 Avg Prop Armor Cover (%) 5 | . . . . . . 5 Naked Turns . | . . . . . . . Heaviest Build 69 | 13 21 22 69 61 59 67 Greatest Support 80 | 40 40 40 40 40 16 80 Greatest Overweight (x) 16 | . . . 1 3 4 16 Average Overweight (x) 1 | . . . . 2 3 . Largest Inventory Capacity 20 | 8 10 10 20 20 20 20 Average Capacity 17 | 7 9 10 18 20 20 19 Most Carried 20 | 7 10 10 20 20 20 20 Average Carried 15 | 5 7 10 17 18 17 15 Final Capacity 20 | 8 10 10 20 20 20 5 Final Carried 20 | 7 10 10 20 20 20 5 Class Distribution -------------------- 75% | Mutant 11% | Scavenger-Gunner 5% | Gunner 4% | Commander-Gunner 3% | Derelict-Mutant Dominant Class ---------------- Mutant | -10/Materials Mutant | -10/Mines Mutant | -10/Subcaves Mutant | -9/Recycling Mutant | -9/Scraptown Mutant | -6/Factory Resources | -11 -10 -10 -10 -9 -9 -6 ----------- Run | Yrd Mat Min Sub Rec Scr Fac Matter Collected 2338 | 318 336 329 609 470 69 207 Remotely . | . . . . . . . Salvage Created 1889 | 179 606 29 403 309 . 363 Parts 110 | 12 34 3 30 13 . 18 Haulers Intercepted 2 | . 2 . . . . . Recyclers Shooed . | . . . . . . . Parts Field Recycled . | . . . . . . . Retrieved Matter . | . . . . . . . Parts Self-Destructed 20 | . . . 20 . . . Prevented . | . . . . . . . Parts Restored . | . . . . . . . Kills | -11 -10 -10 -10 -9 -9 -6 ------- Run | Yrd Mat Min Sub Rec Scr Fac Combat Hostiles Destroyed 41 | . 14 2 9 8 . 8 Melee 5 | . . . . . . 5 Guns 23 | . 8 2 6 7 . . Cannons 7 | . . . 3 1 . 3 AOE 6 | . 6 . . . . . Classes Destroyed 14 | 2 5 . 2 3 . 2 Worker 2 | . 2 . . . . . Tunneler 5 | 5 . . . . . . Hauler 2 | . 2 . . . . . Recycler 3 | 1 1 . . 1 . . Turret 2 | . . . 2 . . . Watcher 2 | . 2 . . . . . Swarmer 12 | . 3 2 3 4 . . Grunt 14 | . 11 . . . . 3 Duelist 1 | . . . . 1 . . Sentry 3 | . . . . 2 . 1 Demolisher 1 | . . . . 1 . . Hunter 3 | . . . . . . 3 Programmer 1 | . . . . . . 1 Subdweller 6 | . . . 6 . . . Best Kill Streak 6 | 2 6 2 4 4 . 2 Combat Bots Only 4 | . 2 2 2 4 . 2 Max Kills in Single Turn 2 | 1 2 1 1 2 . 1 Gunslinging 1 | . . . . 1 . . Exploded 2 | . 2 . . . . . Melee 1 | . . . . . . 1 Uniques/NPCs Destroyed . | . . . . . . . Combat | -11 -10 -10 -10 -9 -9 -6 -------- Run | Yrd Mat Min Sub Rec Scr Fac Hostile Shots Fired 426 | . 69 3 43 54 . 257 Missed 87 | . 9 1 13 13 . 51 Hits 339 | . 60 2 30 41 . 206 Melee 7 | . . . . 2 . 5 Projectile 332 | . 60 2 30 39 . 201 AOE 2 | . . . 1 1 . . Critical Strikes 9 | . . . . . . 9 Damage Taken 5216 | . 647 16 581 468 . 3504 Core 1417 | . 37 9 131 138 . 1102 Absorbed by Shields . | . . . . . . . Core Remaining (%) 85 | 100 . . . . 71 . Volleys Fired 164 | 8 75 2 37 10 . 32 Largest 5 | 2 2 2 5 3 . 1 Hottest 280 | 40 70 83 280 200 . 80 Shots Fired 312 | 16 137 4 98 25 . 32 Gun 240 | 16 126 4 67 22 . 5 Cannon 57 | . . . 27 3 . 27 Launcher 15 | . 11 . 4 . . . Special . | . . . . . . . Kinetic 178 | 16 86 2 38 8 . 28 Thermal 123 | . 40 2 60 17 . 4 Explosive 11 | . 11 . . . . . Electromagnetic . | . . . . . . . Robot Hit Streak 16 | 5 11 4 16 7 . 15 Robot Miss Streak 5 | 1 5 1 3 4 . 1 Penetration Max . | . . . . . . . Secondary Targets 3 | . . . . 3 . . Max Gunslinging Chain 1 | . . . . 1 . . Shots Hit Robots 214 | 10 80 2 52 15 . 55 Core Hits 95 | 7 34 3 23 12 . 16 Critical Kills 1 | . . . 1 . . . Critical Parts Destroyed 1 | . 1 . . . . . Critical Strikes 10 | . 6 1 2 . . 1 Burn 6 | . 5 1 . . . . Destroy 3 | . 1 . 2 . . . Blast 1 | . . . . . . 1 Melee Attacks 47 | . . . . . . 47 Impact . | . . . . . . . Slashing 47 | . . . . . . 47 Piercing . | . . . . . . . Sneak Attacks . | . . . . . . . Combat Hostiles . | . . . . . . . Follow-up Attacks 1 | . . . . . . 1 Damage Inflicted 4993 | 132 1475 36 1298 356 . 1696 Guns 2207 | 132 980 35 708 298 . 54 Cannons 980 | . . . 310 51 . 619 Explosions 771 | . 491 . 280 . . . Melee 1023 | . . . . . . 1023 Ramming 12 | . 4 1 . 7 . . Kinetic 2185 | 132 667 23 682 111 . 570 Thermal 1282 | . 313 12 616 238 . 103 Explosive 491 | . 491 . . . . . Electromagnetic . | . . . . . . . Impact . | . . . . . . . Slashing 1023 | . . . . . . 1023 Piercing . | . . . . . . . Highest Corruption 28 | . . . . 28 . 9 Average Corruption 12 | . . . . 14 . 6 Corruption Purged . | . . . . . . . Corruption Blocked . | . . . . . . . Effects 73 | . . . . 56 . 17 Message Errors 15 | . . . . 11 . 4 Matter Fused 19 | . . . . 12 . 7 Heat Flow Errors 12 | . . . . 11 . 1 Energy Discharges 7 | . . . . 4 . 3 Parts Fused 3 | . . . . 2 . 1 Data Loss (minor) 12 | . . . . 11 . 1 Data Loss (major) 2 | . . . . 2 . . Misfires 1 | . . . . 1 . . Alerts 1 | . . . . 1 . . Weapon Failures 1 | . . . . 1 . . Overload Shots . | . . . . . . . Overflow Damage 52 | . . . 8 6 . 38 Projectiles 14 | . . . 8 6 . . Explosions . | . . . . . . . Melee 38 | . . . . . . 38 Knockbacks 7 | . . . 3 . . 4 Impact . | . . . . . . . Kinetic 7 | . . . 3 . . 4 Secondary . | . . . . . . . Self-Inflicted Damage 49 | . 3 . 43 3 . . Shots 2 | . 1 . 1 . . . Rammed 3 | . 1 1 . 1 . . Targets Rammed 3 | . 1 1 . 1 . . Kicked . | . . . . . . . Crushed . | . . . . . . . Highest Temperature 466 | . 138 24 466 393 . 71 Average Temperature 97 | . 38 12 146 130 . 31 Received Heat Transfer 858 | . 276 . 138 9 . 435 Effects 5 | . . . 2 3 . . Shutdowns 1 | . . . 1 . . . Interference 3 | . . . . 3 . . Short Circuit 1 | . . . 1 . . . Siege Activations . | . . . . . . . Martial Activations . | . . . . . . . Shielding Activations . | . . . . . . . Robots Disrupted . | . . . . . . . Combat Hostiles . | . . . . . . . Robots Corrupted . | . . . . . . . Combat Hostiles . | . . . . . . . Parts Fried . | . . . . . . . Impact Corruptions . | . . . . . . . Robots Melted . | . . . . . . . Combat Hostiles . | . . . . . . . Parts Melted 2 | . 2 . . . . . Heat Transferred 2727 | . 1295 111 822 299 . 200 Parts Sabotaged . | . . . . . . . Parts Stolen . | . . . . . . . Parts Stripped . | . . . . . . . Power Chain Reactions . | . . . . . . . Alert | -11 -10 -10 -10 -9 -9 -6 ------- Run | Yrd Mat Min Sub Rec Scr Fac Maximum Alert Level 1 | . . . . 1 . . Low Security (%) 96 | 100 100 100 . 88 . 100 Level 1 3 | . . . . 11 . . Level 2 . | . . . . . . . Level 3 . | . . . . . . . Level 4 . | . . . . . . . Level 5 . | . . . . . . . High Security . | . . . . . . . Max Security . | . . . . . . . Peak Influence 217 | 10 174 64 . 217 . 42 Initial 39 | . . 39 . 34 . . Average 54 | 1 60 13 . 95 . 8 Influence Increases 1753 | 30 465 72 282 672 . 232 Destroy 0b10 Robot/C 1040 | . 280 60 220 320 . 160 Destroy 0b10 Robot/NC 105 | 30 35 . . 40 . . Destroy Leader 138 | . 78 10 10 . . 40 Allied During Kill 50 | . . 1 7 42 . . Successful Hack 54 | . 13 . . 28 . 13 Select Force Hacks 210 | . . . . 210 . . Disable Machine 15 | . 15 . . . . . Destroy Structure 96 | . 44 1 . 32 . 19 Lose Combat Pursuer 45 | . . . 45 . . . Influence Decreases 1753 | 30 363 166 217 564 181 232 Entered New Map 288 | . . 63 5 39 181 . Time Decay 1319 | 30 333 103 212 493 . 148 Lost Part 121 | . 30 . . 20 . 71 Lost Ally 25 | . . . . 12 . 13 Squads Dispatched 9 | . 4 . . . . 5 Investigation 4 | . 2 . . . . 2 Extermination 2 | . . . . . . 2 Reinforcement 3 | . 2 . . . . 1 Assault . | . . . . . . . Garrison . | . . . . . . . Intercept . | . . . . . . . Searches Triggered . | . . . . . . . Construction Impeded . | . . . . . . . Haulers Reinforced . | . . . . . . . Active Scanning Responses . | . . . . . . . Cargo Convoy Interrupts . | . . . . . . . Stealth | -11 -10 -10 -10 -9 -9 -6 --------- Run | Yrd Mat Min Sub Rec Scr Fac Distress Signals 2 | . 2 . . . . . Communications Jammed . | . . . . . . . Distress Signals . | . . . . . . . Times Spotted 73 | . 23 3 19 12 . 16 Peak Tracking Total 5 | . 4 3 4 5 . 5 Tactical Retreats 2 | . . . 2 . . . Traps | -11 -10 -10 -10 -9 -9 -6 ------- Run | Yrd Mat Min Sub Rec Scr Fac Traps Triggered 2 | . 1 . 1 . . . Indirectly . | . . . . . . . Trap Hack Attempts . | . . . . . . . Triggered . | . . . . . . . Disarmed . | . . . . . . . Reprogrammed . | . . . . . . . Reused . | . . . . . . . Traps Extracted . | . . . . . . . Installed . | . . . . . . . Triggered . | . . . . . . . Most Traps Carried 1 | . . . . . 1 1 Machines | -11 -10 -10 -10 -9 -9 -6 ---------- Run | Yrd Mat Min Sub Rec Scr Fac Machines Disabled 2 | . 1 . 1 . . . Max in Single Turn 1 | . 1 . 1 . . . Machines Repaired . | . . . . . . . Machines Dismantled . | . . . . . . . Machines Sabotaged . | . . . . . . . Overloaded Fab Kills . | . . . . . . . Hacking | -11 -10 -10 -10 -9 -9 -6 --------- Run | Yrd Mat Min Sub Rec Scr Fac Machines Accessed 27 | . 6 . 2 13 3 3 Terminals 14 | . 6 . . 6 . 2 Fabricators . | . . . . . . . Repair Stations . | . . . . . . . Recycling Units 8 | . . . . 7 . 1 Scanalyzers . | . . . . . . . Garrison Access . | . . . . . . . Total Hacks 67 | . 16 . 9 26 7 9 Successful 44 | . 9 . 9 15 7 4 Failed 23 | . 7 . . 11 . 5 Catastrophic 1 | . . . . . . 1 Database Lockouts . | . . . . . . . Manual 50 | . 17 . . 26 . 7 Terminals 39 | . 16 . . 16 . 7 Fabricators . | . . . . . . . Repair Stations . | . . . . . . . Recycling Units 12 | . . . . 10 . 2 Scanalyzers . | . . . . . . . Garrison Access . | . . . . . . . Terminal Hacks 17 | . . . 9 . 7 1 Record 13 | . . . 8 . 5 . Open Door 1 | . . . . . 1 . Zone Layout 1 | . . . . . . 1 Proto ID Catalog 2 | . . . 1 . 1 . Fabricator Hacks . | . . . . . . . Repair Station Hacks . | . . . . . . . Recycling Unit Hacks . | . . . . . . . Scanalyzer . | . . . . . . . Garrison Access Hacks . | . . . . . . . Unauthorized Hacks 27 | . 9 . . 15 . 3 Terminals 20 | . 9 . . 8 . 3 Botnet 7 | . 3 . . 2 . 2 Skim 13 | . 6 . . 6 . 1 Fabricators . | . . . . . . . Repair Stations . | . . . . . . . Recycling Units 7 | . . . . 7 . . Tunnel 7 | . . . . 7 . . Scanalyzers . | . . . . . . . Garrison Access . | . . . . . . . Data Cores Recovered . | . . . . . . . Used . | . . . . . . . Hacking Detections 13 | . 4 . . 6 . 3 Full Trace Events 4 | . 1 . . 1 . 2 Feedback Events . | . . . . . . . Feedback Blocked . | . . . . . . . Robot Schematics Acquired . | . . . . . . . Robots Built . | . . . . . . . Authchips . | . . . . . . . Time . | . . . . . . . Total Robot Build Rating . | . . . . . . . Part Schematics Acquired . | . . . . . . . Parts Built . | . . . . . . . Authchips . | . . . . . . . Time . | . . . . . . . Total Part Build Rating . | . . . . . . . Part Studies Acquired . | . . . . . . . Parts Repaired . | . . . . . . . Time . | . . . . . . . Parts Recycled . | . . . . . . . Recycled Matter . | . . . . . . . Retrieved Matter . | . . . . . . . Retrieved Components . | . . . . . . . Parts Scanalyzed . | . . . . . . . Part Schematics Acquired . | . . . . . . . Parts Damaged . | . . . . . . . Bothacking | -11 -10 -10 -10 -9 -9 -6 ------------ Run | Yrd Mat Min Sub Rec Scr Fac Used RIF Installer . | . . . . . . . Robots Hacked . | . . . . . . . Non-combat . | . . . . . . . Combat . | . . . . . . . Robot Hacks Applied . | . . . . . . . Relay Couplers Released . | . . . . . . . Fabnet Peak Effective % . | . . . . . . . Robots Rewired 10 | . . . . 10 . . Allies Hacked . | . . . . . . . Hacks Repelled . | . . . . . . . Allies | -11 -10 -10 -10 -9 -9 -6 -------- Run | Yrd Mat Min Sub Rec Scr Fac Total Allies 15 | . . 4 1 10 . . Largest Group 9 | . . 3 3 9 2 2 Highest-Rated Group 152 | . . 40 57 152 68 68 Highest-Rated Ally 57 | . . 31 57 34 34 34 Initial UFD Resources 22 | . . . . . . 22 Total Orders . | . . . . . . . Ally Attacks 49 | . . 1 32 14 . 2 Total Damage 1960 | . . 21 609 1240 . 90 Kills 25 | . . 1 10 14 . . Allies Corrupted . | . . . . . . . Allies Melted . | . . . . . . . X0-1V1 Amusement Gains 109 | . 24 . 5 20 . 60 Good Acts 26 | . 1 . 21 2 . 2 Bad Acts 24 | . 1 1 4 12 . 6 Intel | -11 -10 -10 -10 -9 -9 -6 ------- Run | Yrd Mat Min Sub Rec Scr Fac Active Infowar (turns) 1383 | 25 1300 . . . . 58 Sensors 57 | . . . . . . 57 IFF 1 | . . . . . . 1 Seismic 1325 | 25 1300 . . . . . Robot Analysis Total . | . . . . . . . Derelict Logs Recovered 7 | . . 2 1 . 4 . Drone Launches . | . . . . . . . Drone Recoveries . | . . . . . . . Exploration | -11 -10 -10 -10 -9 -9 -6 ------------- Run | Yrd Mat Min Sub Rec Scr Fac Turns Passed 8640 | 159 1443 554 2604 1401 1701 778 Spaces Moved 4332 | 78 699 299 1065 736 1145 310 Core 39 | 9 . . . . . 30 Treads 2451 | 69 699 299 1065 108 . 211 Legs 52 | . . . . . . 52 Wheels 1790 | . . . . 628 1145 17 Hover . | . . . . . . . Flight . | . . . . . . . Fastest Speed 50 | 50 160 160 160 145 145 100 Average Speed 174 | 147 160 160 228 169 145 163 Slowest Speed 850 | 160 160 160 240 400 150 850 Overloaded Moves . | . . . . . . . Propulsion Burnouts . | . . . . . . . Robots Hopped . | . . . . . . . Potential Cave-ins 2 | . . . . 2 . . Cave-ins Triggered . | . . . . . . . Exploration Rate (%) 63 | 3 96 65 87 98 85 10 Regions Visited 6 Branch Regions 4 Pre-discovered Areas 11 | . . 1 2 7 1 . Known Exits Taken 2 | . . 1 1 . . . Unknown Exits Taken 4 | 1 1 . . 1 1 . Scrap Searched 12 | . . 3 2 . 7 . Spaces Dug 5 | . . . . . . 5 Terrain Destroyed 109 | . 49 1 54 . . 5 Melee 3 | . . . . . . 3 Projectile 7 | . . 1 4 . . 2 AOE 99 | . 49 . 50 . . . Terrain Rammed . | . . . . . . . Walls Destroyed . | . . . . . . . Machines Disabled . | . . . . . . . Actions | -11 -10 -10 -10 -9 -9 -6 --------- Run | Yrd Mat Min Sub Rec Scr Fac Total 5063 | 106 885 370 1158 870 1180 494 Wait 267 | . 90 67 22 19 . 69 Move 4326 | 77 698 298 1064 735 1144 310 Hop . | . . . . . . . Pick Up 70 | 14 7 . 16 6 15 12 Fast Attach 2 | . . 1 . . 1 . Attach 40 | 7 3 . 6 4 3 17 Detach 3 | . . . 1 1 1 . Swap 21 | . 8 . 5 2 1 5 Drop 31 | . 3 1 7 4 13 3 Fire 164 | 8 75 2 37 10 . 32 Melee 46 | . . . . . . 46 Ram 1 | . . . . 1 . . Kick . | . . . . . . . Crush 2 | . 1 1 . . . . Escape Stasis . | . . . . . . . Rewire 88 | . . . . 88 . . Trap . | . . . . . . . Miscellaneous 2 | . . . . . 2 . Route ------- -11/Scrapyard -10/Materials (discovered 6 exits: *Mat x3 / [*Min x2] / *Sub) -10/Mines (discovered 3 exits: *Mat x2 / *Sub) -10/Subcaves (discovered 3 exits: [*Mat x2] / *Rec) -9/Recycling (discovered 2 exits: [*Fac] / *Scr) -9/Scraptown (discovered 2 exits: *Fac x2) -6/Factory History --------- Turn | Location | Event 7 | -11/Scrapyard | Discovered new exit (range 16) 160 | -11/Scrapyard | Entered Materials 303 | -10/Materials | Build established: Mutant 390 | -10/Materials | Discovered new exit (range 10) 468 | -10/Materials | Discovered new exit (range 14) 733 | -10/Materials | Discovered new exit (range 16) 867 | -10/Materials | Discovered new exit (range 11) 1195 | -10/Materials | Discovered new exit (range 10) 1382 | -10/Materials | Learned Storage stockpile data 1402 | -10/Materials | Discovered new exit (range 9) 1416 | -10/Materials | Loaded intel: 8 trap records 1442 | -10/Materials | Learned location of 2 exits from Mines 1463 | -10/Materials | Learned Materials trap positions 1478 | -10/Materials | Loaded intel: 1 repair station location 1488 | -10/Materials | Prayed at D.C.S.S. Altar Unit 1502 | -10/Materials | Learned Storage emergency access door positions 1538 | -10/Materials | Ranged accuracy permanently improved by X0-1V1 (+5%; -50 max core) 1603 | -10/Materials | Entered Mines 1604 | -10/Mines | Identified exit to Materials 1604 | -10/Mines | Identified exit to Subcaves 1629 | -10/Mines | A weapon hastily lodged in a ceiling crevice suddenly fell to the ground 1689 | -10/Mines | Discovered exit to Materials (range 12) 1693 | -10/Mines | Received a Mining Laser from a helpful Derelict 1975 | -10/Mines | Learned location of Mines (-8) 2056 | -10/Mines | Assisted by bots powering up and referring to "LRC-V3" 2157 | -10/Mines | Entered Subcaves 2157 | -10/Subcaves | Accompanied by 3 allies 2242 | -10/Subcaves | Discovered new exit (range 10) 2312 | -10/Subcaves | A swath of the cavern ceiling suddenly collapsed 2426 | -10/Subcaves | Shifting Twisted Machinery released Scrap Shield 2427 | -10/Subcaves | Shifting Twisted Machinery released Mak. Leg 2484 | -10/Subcaves | X0-1V1 rewrote Mercenary 1a IFF filter 2655 | -10/Subcaves | Discovered new exit (range 11) 2757 | -10/Subcaves | X0-1V1 sent hostile S-10 Pest (x3) 2851 | -10/Subcaves | Visited Clippyterm 2858 | -10/Subcaves | Learned location of Section 7 (-2) 2858 | -10/Subcaves | Identified exit to Recycling 3116 | -10/Subcaves | Learned location of Zion (-6) 3116 | -10/Subcaves | Met a Zionite searching for "candidates" 3644 | -10/Subcaves | Ambushed by Subdwellers from Twisted Machinery 3663 | -10/Subcaves | Weapon slot count temporarily expanded by X0-1V1 (+3) 3663 | -10/Subcaves | Core integrity fell below 50% 3675 | -10/Subcaves | X0-1V1 sent allied Chaos Knight (x1) 3808 | -10/Subcaves | Core integrity restored by X0-1V1 (+40) 3961 | -10/Subcaves | Build established: Scavenger-Gunner 3996 | -10/Subcaves | Melee accuracy permanently improved by X0-1V1 (+6%; -60 max core) 4054 | -10/Subcaves | X0-1V1 activates XOMVISION 4103 | -10/Subcaves | Shifting Twisted Machinery released Battle Rifle 4105 | -10/Subcaves | Shifting Twisted Machinery released Sub. Beam Cannon 4472 | -10/Subcaves | Visited 4L-MR0's lab 4514 | -10/Subcaves | Core integrity restored by X0-1V1 (+40) 4761 | -10/Subcaves | Entered Recycling 4786 | -9/Recycling | System corruption reached 10% 4800 | -9/Recycling | X0-1V1 mutated your Propulsion slot to Weapon slot 4816 | -9/Recycling | Core integrity permanently improved by X0-1V1 (+350) 4820 | -9/Recycling | X0-1V1 sent hostile S-10 Pest (x5) 5102 | -9/Recycling | Build established: Gunner 5294 | -9/Recycling | X0-1V1 vaporized surrounding terrain (radius 22) 5323 | -9/Recycling | X0-1V1 sent you into danger 5519 | -9/Recycling | Build established: Commander-Gunner 5568 | -9/Recycling | Discovered new exit (range 16) 5591 | -9/Recycling | X0-1V1 sent hostile B-36 Bruiser (x3) 5616 | -9/Recycling | X0-1V1 mutated your Weapon slot to Power slot 5624 | -9/Recycling | Lost 4 allies 5742 | -9/Recycling | X0-1V1 vaporized surrounding terrain (radius 22) 5923 | -9/Recycling | Build established: Mutant 6122 | -9/Recycling | Scanned before Scraplab entrance 6138 | -9/Recycling | Discovered new exit (range 11) 6142 | -9/Recycling | Entered Scraplab 6162 | -9/Recycling | Entered Scraptown 6162 | -9/Scraptown | Accompanied by 2 allies 6162 | -9/Scraptown | System corruption cleaned by C-Scrubber 6367 | -9/Scraptown | Visited Artisan Demo Area 6389 | -9/Scraptown | Visited Red Mages 6424 | -9/Scraptown | Learned location of Extension (-4) 6670 | -9/Scraptown | Scanned Subdweller tech in exchange for log data 6674 | -9/Scraptown | Learned Factory terminal intel 6676 | -9/Scraptown | Learned Factory stockpile data 6677 | -9/Scraptown | Learned Factory emergency access door positions 6679 | -9/Scraptown | Learned Research terminal intel 6692 | -9/Scraptown | Discovered new exit (range 13) 6789 | -9/Scraptown | Visited Comm Corps 6818 | -9/Scraptown | Visited IN-MT5's Study 6848 | -9/Scraptown | Visited UFD Registry 6872 | -9/Scraptown | Registered with UFD as "Matrixcell" 6902 | -9/Scraptown | Visited Derelict Rescue Squad 6916 | -9/Scraptown | Found DRS Beacon 6945 | -9/Scraptown | Visited DA-N13 Charitable Foundation 6951 | -9/Scraptown | Found DCF Scrap (29 items) 6984 | -9/Scraptown | Visited Science Guys 7057 | -9/Scraptown | Delivered Scrap Shield to a Scientist 7093 | -9/Scraptown | Visited Chapter 10 7115 | -9/Scraptown | Visited Scrapoid Pod Storage 7186 | -9/Scraptown | Visited Junk Repository 7222 | -9/Scraptown | Visited Modified Component R&D 7272 | -9/Scraptown | Visited Scrap Suit Storage 7303 | -9/Scraptown | Visited Sword Containment 7330 | -9/Scraptown | Visited LU-1G1's Boring Crew 7408 | -9/Scraptown | Found Prototype Slashing Weapon 7409 | -9/Scraptown | Identified Companion Sword 7517 | -9/Scraptown | Found Scrapoid Pod 7768 | -9/Scraptown | Met Optimus 7768 | -9/Scraptown | Accepted into 0bPrime 7860 | -9/Scraptown | Discovered new exit (range 3) 7863 | -9/Scraptown | Entered Factory 7863 | -6/Factory | Accompanied by 2 allies 7863 | -6/Factory | Evolved 8 slots: Propulsion x4, Utility x4 7866 | -6/Factory | Loaded intel: 26 terminal locations 8113 | -6/Factory | X0-1V1 sent hostile B-48 Gladiator (x3) 8162 | -6/Factory | Spotted B-75 Beast 8162 | -6/Factory | X0-1V1 whisked you away to safety 8191 | -6/Factory | Lost 3 parts (3u) 8282 | -6/Factory | Lost 3 parts (1p2n) 8287 | -6/Factory | X0-1V1 mutated your Utility slot to Propulsion slot 8575 | -6/Factory | Core integrity fell below 50% 8612 | -6/Factory | Core integrity fell below 20% 8641 | -6/Factory | Destroyed by P-60 Hacker with Shock Rifle Last Messages --------------- 08601_ Penetrated by Slug. 08601_ Gauss Rifle destroyed. 08602_ Dropped Hcp. Storage Unit. 08603_ Acquired 5 matter. 08606_ Penetrated by Slug. 08612_ System corrupted: Matter fused (-10). 08612_ Penetrated by Slug. X0-1V1's Piety Tracker suddenly appears amidst shimmering waves of color. Companion Sword: "ALERT: Your companion is under attack." 08624_ Penetrated by Slug. 08624_ Adv. Targeting Computer destroyed. 08624_ X0-1V1: "Your inner air conditioner seems to have fallen into disrepair." (-30 heat dissipation) 08630_ X0-1V1 lends a hand with your twisted circuits (-9 system corruption). 08636_ Heat dissipation returns to normal. 08641_ X0-1V1 snickers! Map ----- +----------------------------------------------------+ | ????????????????????????????"????????????????????? | | ????????????????????????????"????????????????????? | | ????????????????????????????T????????????????????? | | ????????????????????????????"????????????????????? | | ????????????????????????????"????????????????????? | | ????????????????????????????"????????????????????? | | ?????????????????????????????????????????????????? | | ???????????????????????????????????+?????????????? | | ?????????????????????????????????????????????????? | | ??????????????????????????????????????????#??????? | | ?????????????????????????????????????????? #????? | | ???????????????????????????????????????? ?????? | | ???????????????????????????????????????? " ?????? | | ???????????????????????????????????????? ??????? | | ????????????????????????????????????????= ??????? | | ???????????????????????/????????????????# #??????? | | ????????????????????????????????????????# #??????? | | ???????????????????????????????????????## ##?????? | | ????????????????????????#+##########+### #?????? | | ????????????????????????# t #?????? | | ??????????????????####### #?????? | | ??????????????????# #?????? | | ?????# ?????????# #?????? | | ###### ?????????# #?????? | | #?+##+#### h #?????? | | @ p #?????? | | ######## T########## #?????? | | #??????###########?# #?????? | | """????? #????????# #?# #?????? | | """?"" "" """%%########## #?# #?????? | | """?"" ""F""" #?# #?????? | | """""" """"" %% " ###"####### | | % % % % # ! # | | ###+###### # !!!# | | ####### ###########+### ## # [!!! # | | #??# #???# ! ## #### ### [ !! # | | #### #####% ## ] #??# ####"/####### | | ! + +[| ## #??# # !%"[%!&#??? | | ####/##### [ ## #??# # ""!=*!"#??? | | " # #?#!= ## !!!#??# # ""![&]"#??? | | " # #?# ## ! #??# # """"]]"#??? | | #### #?# ## ! #??# # """" T#??? | | ???# """% ### ## #??# + """" "#??? | | ???# """ %+ +% ## #??# # """" "#??? | | ???# """ ############# #??# # """" "#??? | | ???########???????????#########??# # #??? | | ?????????????????????????????????# ##########??? | | ?????????????????????????????????+ +???????????? | | ?????????????????????????????????# #???????????? | | ?????????????????????????????????# ????????????? | +----------------------------------------------------+ Best States ------------- Heat Dissipation 56 Energy Generation 19 Energy Capacity 1180 Matter Stores 697 Matter Capacity 800 Sight Range 22 Robot Scan Range 15 Terrain Scan Density 10 Armor Coverage 225 Melee Speed Boost 20 Evasion (%) 50 Targeting Accuracy 8 Recoil Reduction 4 Offensive Hacking 12 Item Schematics ----------------- None Robot Schematics ------------------ None Fabricated ------------ Nothing Repaired ---------- Nothing Studied --------- None Alien Tech Used ----------------- None Achievements -------------- None Challenges ------------ None Game ------ Seed NetworkBackupWartreads Manual? 0 Play Time 00:48:44 Cumulative 207.7 hours Start 2026.07.18 @ 21:51:38 End 2026.07.19 @ 09:23:42 Sessions 3 Manual Loads 0 Difficulty Rogue Special Mode None Game No. 293 Rogue 293 Adventurer 0 Explorer 0 Win Type - Total 3 Types 2/0/0/1/0/0/0/0/0/0 Lore% 74 Gallery% 69 Achievement% 56 Wizard Run 0 Options --------- Layout 1 ASCII 0 Keyboard 0 Movement Mouse Keybinds 0 Fullscreen 1 Font 24/Smallcaps Map View 50x35 Zoom Use 0% Tactical HUD 1 Map Filters NONE Filters NONE Steam 1 RUN: e3f6b456-da9c-4052-beb7-82c15afd114f